Cogmind - Beta 15 @@@ ROGUE MODE // 2025.09.05 @ 18:00:13 Player: Ice_Kraken505 Result: Destroyed by G-47 Trooper with Particle Gun Performance ------------- Evolutions (0) 0 Regions Visited (1) 200 Robots Destroyed (17) 85 Value Destroyed (150) 150 Prototype IDs (0) 0 Alien Tech Used (0) 0 Bonus (0) 0 TOTAL SCORE: 435 Bonus ------- None Cogmind --------- Core Integrity 0/250 Matter 203/300 Energy 125/125 System Corruption 0% Temperature Cool (9) Movement Core (100) Ox1 Location -10/Materials Parts ------- > --- POWER (1) -------- Light Ion Engine > --- PROPULSION (2) --- (None) > --- UTILITY (2) ------ Signal Interpreter Seismic Detector > --- WEAPON (2) ------- Light Assault Rifle > --- INVENTORY (5) ---- Wheel Peak State ------------ > --- POWER ------------ Light Ion Engine > --- PROPULSION ------- Wheel Wheel > --- UTILITY ---------- Improved Terrain Scanner > --- WEAPON ----------- Assault Rifle Light Assault Rifle > --- INVENTORY -------- Light Ion Engine Wheel Wheel Compact Wheel Seismic Detector [Rating: 8] Favorites ----------- Power Light Ion Engine Engine Light Ion Engine Propulsion Wheel Leg Aluminum Leg Wheel Wheel Utility Seismic Detector Device Seismic Detector Storage Medium Matter Pod Processor Signal Interpreter Weapon Assault Rifle Ballistic Gun Assault Rifle Build | -11 -10 ------- Run | Yrd Mat Slots Evolved . | . . Power . | . . Propulsion . | . . Utility . | . . Weapon . | . . Parts Attached 18 | 13 5 Power 3 | 2 1 Engine 3 | 2 1 Core . | . . Reactor . | . . Propulsion 7 | 6 1 Treads . | . . Leg 2 | 2 . Wheel 5 | 4 1 Hover . | . . Flight . | . . Utility 5 | 3 2 Device 3 | 3 . Storage 1 | . 1 Processor 1 | . 1 Hackware . | . . Protection . | . . Artifact . | . . Weapon 3 | 2 1 Energy Gun . | . . Energy Cannon . | . . Ballistic Gun 3 | 2 1 Ballistic Cannon . | . . Launcher . | . . Special Weapon . | . . Impact Weapon . | . . Slashing Weapon . | . . Piercing Weapon . | . . Special Melee Weapon . | . . Unidentified Prototypes . | . . Parts Lost 6 | . 6 Power 1 | . 1 Propulsion 3 | . 3 Utility . | . . Weapon 2 | . 2 Highest Loss Streak 6 | . 6 To Critical Strikes . | . . Average Backups 3 | 3 2 Power . | . . Propulsion 2 | 2 1 Utility . | . . Weapon . | . . Tool/Special . | . . Unused Backups 4 | 3 1 Power . | . . Propulsion 4 | 3 1 Utility . | . . Weapon . | . . Tool/Special . | . . Average Slot Usage (%) 92 | . 92 Engine 14 | . 14 Wheel 25 | . 25 Device 13 | . 13 Processor 10 | . 10 Ballistic Gun 26 | . 26 Peak Build Rating 8 | 8 7 Average Rating 6 | 5 6 On Entrance 2 | . 5 Naked Turns . | . . Heaviest Build 9 | 9 9 Greatest Support 32 | 32 20 Greatest Overweight (x) . | . . Average Overweight (x) . | . . Largest Inventory Capacity 5 | 5 5 Average Capacity 5 | 5 5 Most Carried 5 | 5 4 Average Carried 3 | 3 2 Final Capacity 5 | 5 5 Final Carried 5 | 5 1 Class Distribution -------------------- 100% | Mutant Dominant Class ---------------- Mutant | -10/Materials Resources | -11 -10 ----------- Run | Yrd Mat Matter Collected 475 | 418 57 Remotely . | . . Salvage Created 403 | 260 143 Parts 41 | 24 17 Haulers Intercepted . | . . Recyclers Shooed 1 | . 1 Parts Field Recycled . | . . Retrieved Matter . | . . Parts Self-Destructed . | . . Prevented . | . . Kills | -11 -10 ------- Run | Yrd Mat Combat Hostiles Destroyed 6 | . 6 Guns 6 | . 6 Classes Destroyed 6 | 3 3 Worker 3 | 3 . Builder 1 | . 1 Tunneler 6 | 6 . Recycler 1 | 1 . Swarmer 5 | . 5 Grunt 1 | . 1 Best Kill Streak 4 | 2 4 Combat Bots Only 3 | . 3 Max Kills in Single Turn 2 | 2 2 Gunslinging . | . . Exploded . | . . Melee . | . . Uniques/NPCs Destroyed . | . . Combat | -11 -10 -------- Run | Yrd Mat Hostile Shots Fired 93 | . 93 Missed 29 | . 29 Hits 64 | . 64 Projectile 64 | . 64 Damage Taken 671 | . 671 Core 251 | . 251 Absorbed by Shields . | . . Core Remaining (%) 100 | 100 . Volleys Fired 58 | 22 36 Largest 2 | 2 2 Hottest 40 | 40 40 Shots Fired 106 | 44 62 Gun 106 | 44 62 Cannon . | . . Launcher . | . . Special . | . . Kinetic 106 | 44 62 Thermal . | . . Explosive . | . . Electromagnetic . | . . Robot Hit Streak 8 | 5 8 Robot Miss Streak 6 | 2 6 Penetration Max . | . . Secondary Targets 2 | . 2 Max Gunslinging Chain 1 | . 1 Shots Hit Robots 57 | 25 32 Core Hits 26 | 12 14 Critical Kills . | . . Critical Parts Destroyed . | . . Critical Strikes . | . . Melee Attacks . | . . Impact . | . . Slashing . | . . Piercing . | . . Sneak Attacks . | . . Combat Hostiles . | . . Follow-up Attacks . | . . Damage Inflicted 661 | 287 374 Guns 661 | 287 374 Cannons . | . . Explosions . | . . Melee . | . . Ramming . | . . Kinetic 661 | 287 374 Thermal . | . . Explosive . | . . Electromagnetic . | . . Impact . | . . Slashing . | . . Piercing . | . . Highest Corruption . | . . Average Corruption . | . . Corruption Purged . | . . Corruption Blocked . | . . Overload Shots . | . . Overflow Damage . | . . Projectiles . | . . Explosions . | . . Melee . | . . Knockbacks . | . . Impact . | . . Kinetic . | . . Secondary . | . . Self-Inflicted Damage . | . . Shots . | . . Rammed . | . . Targets Rammed . | . . Kicked . | . . Crushed . | . . Highest Temperature 21 | . 21 Average Temperature 10 | . 10 Received Heat Transfer 222 | . 222 Siege Activations . | . . Martial Activations . | . . Shielding Activations . | . . Robots Disrupted . | . . Combat Hostiles . | . . Robots Corrupted . | . . Combat Hostiles . | . . Parts Fried . | . . Impact Corruptions . | . . Robots Melted . | . . Combat Hostiles . | . . Parts Melted . | . . Heat Transferred . | . . Parts Sabotaged . | . . Parts Stolen . | . . Parts Stripped . | . . Power Chain Reactions . | . . Alert | -11 -10 ------- Run | Yrd Mat Maximum Alert Level . | . . Low Security (%) 100 | 100 100 Level 1 . | . . Level 2 . | . . Level 3 . | . . Level 4 . | . . Level 5 . | . . High Security . | . . Max Security . | . . Peak Influence 70 | 10 70 Initial 6 | . 6 Average 10 | . 29 Influence Increases 210 | 50 160 Destroy 0b10 Robot/C 120 | . 120 Destroy 0b10 Robot/NC 55 | 50 5 Destroy Leader 20 | . 20 Disable Machine 15 | . 15 Influence Decreases 155 | 40 115 Entered New Map 4 | . 4 Time Decay 91 | 40 51 Lost Part 60 | . 60 Squads Dispatched . | . . Investigation . | . . Extermination . | . . Reinforcement . | . . Assault . | . . Garrison . | . . Intercept . | . . Searches Triggered . | . . Construction Impeded . | . . Haulers Reinforced . | . . Active Scanning Responses . | . . Cargo Convoy Interrupts . | . . Stealth | -11 -10 --------- Run | Yrd Mat Distress Signals 1 | . 1 Communications Jammed . | . . Distress Signals . | . . Times Spotted 9 | . 9 Peak Tracking Total 5 | . 5 Tactical Retreats . | . . Traps | -11 -10 ------- Run | Yrd Mat Traps Triggered . | . . Indirectly . | . . Trap Hack Attempts . | . . Triggered . | . . Disarmed . | . . Reprogrammed . | . . Reused . | . . Traps Extracted . | . . Installed . | . . Triggered . | . . Machines | -11 -10 ---------- Run | Yrd Mat Machines Disabled 1 | . 1 Max in Single Turn 1 | . 1 Machines Repaired . | . . Machines Dismantled . | . . Machines Sabotaged . | . . Overloaded Fab Kills . | . . Hacking | -11 -10 --------- Run | Yrd Mat Machines Accessed . | . . Terminals . | . . Fabricators . | . . Repair Stations . | . . Recycling Units . | . . Scanalyzers . | . . Garrison Access . | . . Total Hacks . | . . Successful . | . . Failed . | . . Catastrophic . | . . Database Lockouts . | . . Manual . | . . Terminals . | . . Fabricators . | . . Repair Stations . | . . Recycling Units . | . . Scanalyzers . | . . Garrison Access . | . . Terminal Hacks . | . . Fabricator Hacks . | . . Repair Station Hacks . | . . Recycling Unit Hacks . | . . Scanalyzer . | . . Garrison Access Hacks . | . . Unauthorized Hacks . | . . Terminals . | . . Fabricators . | . . Repair Stations . | . . Recycling Units . | . . Scanalyzers . | . . Garrison Access . | . . Data Cores Recovered . | . . Used . | . . Hacking Detections . | . . Full Trace Events . | . . Feedback Events . | . . Feedback Blocked . | . . Robot Schematics Acquired . | . . Robots Built . | . . Authchips . | . . Time . | . . Total Robot Build Rating . | . . Part Schematics Acquired . | . . Parts Built . | . . Authchips . | . . Time . | . . Total Part Build Rating . | . . Parts Repaired . | . . Time . | . . Parts Recycled . | . . Recycled Matter . | . . Retrieved Matter . | . . Retrieved Components . | . . Parts Scanalyzed . | . . Part Schematics Acquired . | . . Parts Damaged . | . . Bothacking | -11 -10 ------------ Run | Yrd Mat Used RIF Installer . | . . Robots Hacked . | . . Non-combat . | . . Combat . | . . Robot Hacks Applied . | . . Relay Couplers Released . | . . Fabnet Peak Effective % . | . . Robots Rewired . | . . Allies Hacked . | . . Hacks Repelled . | . . Allies | -11 -10 -------- Run | Yrd Mat Total Allies . | . . Largest Group . | . . Highest-Rated Group . | . . Highest-Rated Ally . | . . Total Orders . | . . Ally Attacks . | . . Total Damage . | . . Kills . | . . Allies Corrupted . | . . Allies Melted . | . . Intel | -11 -10 ------- Run | Yrd Mat Active Infowar (turns) 338 | 171 167 Terrain 76 | 76 . Seismic 262 | 95 167 Robot Analysis Total . | . . Derelict Logs Recovered . | . . Drone Launches . | . . Drone Recoveries . | . . Exploration | -11 -10 ------------- Run | Yrd Mat Turns Passed 477 | 309 168 Spaces Moved 223 | 150 73 Core 5 | 5 . Treads . | . . Legs 5 | 5 . Wheels 213 | 140 73 Hover . | . . Flight . | . . Fastest Speed 50 | 50 80 Average Speed 86 | 90 80 Slowest Speed 120 | 120 80 Overloaded Moves . | . . Propulsion Burnouts . | . . Robots Hopped . | . . Potential Cave-ins . | . . Cave-ins Triggered . | . . Exploration Rate (%) 12 | 6 18 Regions Visited 1 Branch Regions . Pre-discovered Areas . | . . Known Exits Taken . | . . Unknown Exits Taken 1 | 1 . Scrap Searched . | . . Spaces Dug . | . . Terrain Destroyed . | . . Melee . | . . Projectile . | . . AOE . | . . Terrain Rammed . | . . Walls Destroyed . | . . Machines Disabled . | . . Actions | -11 -10 --------- Run | Yrd Mat Total 415 | 288 127 Wait 81 | 74 7 Move 222 | 149 73 Hop . | . . Pick Up 23 | 20 3 Fast Attach . | . . Attach 13 | 8 5 Detach . | . . Swap 6 | 5 1 Drop 12 | 10 2 Fire 58 | 22 36 Melee . | . . Ram . | . . Kick . | . . Crush . | . . Escape Stasis . | . . Rewire . | . . Trap . | . . Miscellaneous . | . . Route ------- -11/Scrapyard -10/Materials (discovered 1 exit: [*Min]) History --------- Turn | Location | Event 8 | -11/Scrapyard | Discovered new exit (range 16) 310 | -11/Scrapyard | Entered Materials 316 | -10/Materials | Discovered new exit (range 16) 332 | -10/Materials | Build established: Mutant 452 | -10/Materials | Core integrity fell below 50% 466 | -10/Materials | Core integrity fell below 20% 478 | -10/Materials | Destroyed by G-47 Trooper with Particle Gun Last Messages --------------- U-05 Engineer works on Atomic Centrifuge. Wheel destroyed. U-05 Engineer completes Atomic Centrifuge. U-05 Engineer works on Atomic Centrifuge. Lgt. Assault Rifle destroyed. Atomic Centrifuge comes online. U-05 Engineer works on Atomic Centrifuge. S-10 Pest destroyed. Atomic Centrifuge disabled. U-05 Engineer works on Atomic Centrifuge. Lgt. Ion Engine destroyed. Acquired 19 matter. U-05 Engineer completes Atomic Centrifuge. Assault Rifle destroyed. Acquired Lgt. Assault Rifle. Wheel destroyed. Atomic Centrifuge comes online. K-01 Serf collects debris. S-10 Pest destroyed. K-01 Serf collects debris. Map ----- +----------------------------------------------------+ | ??????????????????????????????????????????????? | | ??????????????????????????????????????????????? | | ??????????????????????????????????????????????? | | ??????????????????????????????????????????????? | | ??????????????????????????????????????????????? | | ??????????????????????????????????????????????? | | ??????????????????????????????????????????????? | | ??????????????????????????????????????????????? | | ??????????????????????????????????????????????? | | ??????????????????????????????????????????????? | | ??????????????????##+####?????????????????????? | | ???????????????? ? ????????????????? | | ???????????????? ??????????????? | | ??????????????? ?????????????? | | ???????????????! ????????????? | | ???????????????? ???????????? | | ????????????????? ? ????????? | | ?????????????????? ????????? | | ??????????????????? #???????? | | ???????????????????# ????????? | | ???????????????????# """ """ ?????????? | | ???????????????????# """ """ ""??????????? | | ?????????????????### " %"""= Y" ?????????? | | ?????????????????# % = "" #???????? | | ?????????????????# *[=k s g #???????? | | ????????????????##= = @ [ #???????? | | ????????????????#T*|=##############???????????? | | ????????????????##*! #????????????????????????? | | ?????????????????# =!#????????????????????????? | | ??????############ #??"" ???????????????????? | | ??????# # """ """ ???????????????? | | ??????# + ?????????????????? | | ??????# #????????????????????????? | | ??????####### ###### #????????????????????????? | | ????????????# #????# #????????????????????????? | | ????????????# #????# #????????????????????????? | | ??########### #????? #????????????????????????? | | ??# | # #????? #????????????????????????? | | ??? # #????? #????????????????????????? | | ??# # #????? #????????????????????????? | | ??# """ """ # ###??? #????????????????????????? | | ??# """ """ # #??? #????????????????????????? | | ??# """ """ # #??? ?????????????????????????? | | ??# + #?????????????????????????????? | | ??# ! # #?????????????????????????????? | | ??########### ##????????????????????????????? | | ??????????## ##???????????????????????????? | | ??????????# #???????????????????????????? | | ??????????# #???????????????????????????? | | ??????????# < #???????????????????????????? | +----------------------------------------------------+ Best States ------------- Heat Dissipation 25 Energy Generation 10 Energy Capacity 250 Matter Stores 300 Matter Capacity 400 Sight Range 16 Terrain Scan Range 16 Terrain Scan Density 10 Evasion (%) 55 Item Schematics ----------------- None Robot Schematics ------------------ None Fabricated ------------ Nothing Repaired ---------- Nothing Alien Tech Used ----------------- None Achievements -------------- None Challenges ------------ None Game ------ Seed ThermalSpikedDrive Manual? 0 Play Time 00:12:14 Cumulative 4.2 hours Start 2025.09.05 @ 17:48:00 End 2025.09.05 @ 18:00:13 Sessions 1 Manual Loads 0 Difficulty Rogue Special Mode None Game No. 5 Rogue 5 Adventurer 0 Explorer 0 Win Type - Total 0 Types 0/0/0/0/0/0/0/0/0/0 Lore% 1 Gallery% 7 Achievement% 9 Wizard Run 0 Options --------- Layout 1 ASCII 0 Keyboard 0 Movement Mouse Keybinds 0 Fullscreen 1 Font 24/Smallcaps Map View 50x35 Zoom Use 0% Tactical HUD 0 Map Filters NONE Filters NONE Steam 1 RUN: 3421c97a-4f69-47e2-b80b-3fc7aeff2fab